[Event "*** Titled Tuesday Blitz"]
[Site "Chess.com"]
[Date "2018.04.03"]
[Round "6"]
[White "Danny_The_Donkey"]
[Black "murmah2003"]
[Result "1/2-1/2"]
[WhiteElo "2653"]
[BlackElo "2445"]
[TimeControl "180+2"]
[EndTime "14:20:53 PDT"]
[Termination "Game drawn by agreement"]

1. e4 {[%clk 0:03:00.6]} 1... Nf6 {[%clk 0:02:48.2]} 2. e5 {[%clk 0:03:00]} 2...
Nd5 {[%clk 0:02:46.7]} 3. d4 {[%clk 0:03:00.7]} 3... d6 {[%clk 0:02:48]} 4. Nf3
{[%clk 0:03:02]} 4... Bg4 {[%clk 0:02:49.4]} 5. Be2 {[%clk 0:03:01.9]} 5... e6
{[%clk 0:02:50.3]} 6. O-O {[%clk 0:03:02.6]} 6... Be7 {[%clk 0:02:49.7]} 7. c4
{[%clk 0:03:03.3]} 7... Nb6 {[%clk 0:02:49.2]} 8. Nc3 {[%clk 0:03:04.1]} 8... a6
{[%clk 0:02:49]} 9. Be3 {[%clk 0:03:04.6]} 9... d5 {[%clk 0:02:34]} 10. b3
{[%clk 0:03:00.3]} 10... O-O {[%clk 0:02:29.5]} 11. h3 {[%clk 0:02:57.2]} 11...
Bh5 {[%clk 0:02:14.2]} 12. Rc1 {[%clk 0:02:51.2]} 12... Nc6 {[%clk 0:02:04.7]}
13. Qd2 {[%clk 0:02:28.1]} 13... Qd7 {[%clk 0:01:53]} 14. c5 {[%clk 0:02:14.6]}
14... Nc8 {[%clk 0:01:53.8]} 15. a3 {[%clk 0:02:11]} 15... Bxf3 {[%clk
0:01:34.6]} 16. gxf3 {[%clk 0:02:08.4]} 16... f5 {[%clk 0:01:18.5]} 17. Kh2
{[%clk 0:01:58.2]} 17... Bh4 {[%clk 0:01:10.8]} 18. f4 {[%clk 0:01:49.5]} 18...
N8e7 {[%clk 0:01:09.8]} 19. Rg1 {[%clk 0:01:47.6]} 19... Kh8 {[%clk 0:01:09.1]}
20. b4 {[%clk 0:01:46.8]} 20... g5 {[%clk 0:00:47.7]} 21. fxg5 {[%clk
0:01:38.2]} 21... f4 {[%clk 0:00:47.9]} 22. Bxf4 {[%clk 0:01:34.9]} 22... Bxf2
{[%clk 0:00:49]} 23. Rg2 {[%clk 0:01:21.4]} 23... Bxd4 {[%clk 0:00:49.4]} 24. b5
{[%clk 0:01:17.2]} 24... Rxf4 {[%clk 0:00:36.5]} 25. bxc6 {[%clk 0:01:05.9]}
25... Nxc6 {[%clk 0:00:38.4]} 26. Bg4 {[%clk 0:00:59.3]} 26... Bxe5 {[%clk
0:00:36.7]} 27. Kh1 {[%clk 0:00:59.9]} 27... Raf8 {[%clk 0:00:37.9]} 28. Rcg1
{[%clk 0:00:52.4]} 28... Qg7 {[%clk 0:00:35.1]} 29. Ne2 {[%clk 0:00:48.1]} 29...
Rf2 {[%clk 0:00:20.8]} 30. Bxe6 {[%clk 0:00:48.6]} 30... Rxg2 {[%clk 0:00:09.2]}
31. Rxg2 {[%clk 0:00:49.2]} 31... Ne7 {[%clk 0:00:10.6]} 32. Ng1 {[%clk
0:00:38.2]} 32... c6 {[%clk 0:00:10.2]} 33. Qd3 {[%clk 0:00:35]} 33... Ng6
{[%clk 0:00:11.3]} 34. Ne2 {[%clk 0:00:23.8]} 34... Rf1+ {[%clk 0:00:09.5]} 35.
Rg1 {[%clk 0:00:24.7]} 35... Rf2 {[%clk 0:00:10.6]} 36. Rg2 {[%clk 0:00:23.4]}
36... Rf1+ {[%clk 0:00:06.3]} 37. Rg1 {[%clk 0:00:24.5]} 37... Rf8 {[%clk
0:00:08.2]} 38. Rg2 {[%clk 0:00:21.1]} 38... Bc7 {[%clk 0:00:08]} 39. Bf5 {[%clk
0:00:15.5]} 39... Nh4 {[%clk 0:00:07.4]} 40. Rf2 {[%clk 0:00:16]} 40... Qxg5
{[%clk 0:00:06]} 41. Qd4+ {[%clk 0:00:14.4]} 41... Qf6 {[%clk 0:00:06.9]} 42.
Bg4 {[%clk 0:00:08.3]} 42... Qxd4 {[%clk 0:00:02.7]} 43. Rxf8+ {[%clk
0:00:09.4]} 43... Kg7 {[%clk 0:00:04.3]} 44. Nxd4 {[%clk 0:00:11.1]} 44... Kxf8
{[%clk 0:00:06.2]} 45. Ne6+ {[%clk 0:00:13]} 45... Ke7 {[%clk 0:00:06.6]} 46.
Nxc7 {[%clk 0:00:14.9]} 46... Ng6 {[%clk 0:00:04.2]} 47. Ne6 {[%clk 0:00:13.4]}
47... Ne5 {[%clk 0:00:04]} 48. Nf4 {[%clk 0:00:14.7]} 48... Nc4 {[%clk
0:00:04.2]} 49. a4 {[%clk 0:00:15.8]} 49... Nb2 {[%clk 0:00:05.5]} 50. Bc8
{[%clk 0:00:13.6]} 50... Nxa4 {[%clk 0:00:06.2]} 51. Nd3 {[%clk 0:00:14.4]}
51... Kd8 {[%clk 0:00:06.1]} 52. Bxb7 {[%clk 0:00:15.7]} 52... Kc7 {[%clk
0:00:07.3]} 53. Bxa6 {[%clk 0:00:17.2]} 53... Kb8 {[%clk 0:00:07.6]} 54. Ne5
{[%clk 0:00:18]} 54... Nxc5 {[%clk 0:00:07.2]} 55. Bd3 {[%clk 0:00:17.5]} 55...
Kc7 {[%clk 0:00:08]} 56. Bxh7 {[%clk 0:00:18.3]} 56... Kd6 {[%clk 0:00:09.9]}
57. Nd3 {[%clk 0:00:19.1]} 57... Ne6 {[%clk 0:00:10.6]} 58. Kg2 {[%clk
0:00:19.2]} 58... c5 {[%clk 0:00:10]} 59. Bf5 {[%clk 0:00:20.3]} 59... c4 {[%clk
0:00:09.2]} 60. Bxe6 {[%clk 0:00:20.4]} 60... cxd3 {[%clk 0:00:10.4]} 61. Bg4
{[%clk 0:00:20.8]} 61... Ke5 {[%clk 0:00:11.7]} 62. Kf2 {[%clk 0:00:22.1]} 62...
Kf6 {[%clk 0:00:13.6]} 63. Ke3 {[%clk 0:00:23.3]} 63... Kg7 {[%clk 0:00:15.2]}
64. Kxd3 {[%clk 0:00:24.7]} 64... Kh8 {[%clk 0:00:17.1]} 65. Kd4 {[%clk
0:00:26.3]} 65... Kg7 {[%clk 0:00:18]} 66. Kxd5 {[%clk 0:00:28.2]} 66... Kh8
{[%clk 0:00:19.9]} 1/2-1/2

[Event "*** Titled Tuesday Blitz"]
[Site "Chess.com"]
[Date "2018.04.03"]
[Round "6"]
[White "nOcHeaTiNgKiD"]
[Black "ajkom197"]
[Result "1-0"]
[WhiteElo "2384"]
[BlackElo "2400"]
[TimeControl "180+2"]
[EndTime "14:20:54 PDT"]
[Termination "nOcHeaTiNgKiD won by resignation"]

1. Nf3 {[%clk 0:03:01.9]} 1... d5 {[%clk 0:03:00.2]} 2. e3 {[%clk 0:03:01.5]}
2... Nf6 {[%clk 0:03:00.3]} 3. c4 {[%clk 0:03:02.3]} 3... c6 {[%clk 0:02:59.3]}
4. Nc3 {[%clk 0:03:03.3]} 4... Bg4 {[%clk 0:02:59.4]} 5. h3 {[%clk 0:03:03.7]}
5... Bxf3 {[%clk 0:03:00.1]} 6. Qxf3 {[%clk 0:03:04.1]} 6... e6 {[%clk
0:03:01.2]} 7. b3 {[%clk 0:03:04.9]} 7... Nbd7 {[%clk 0:03:01.9]} 8. Bb2 {[%clk
0:03:06.1]} 8... Be7 {[%clk 0:02:45.2]} 9. d4 {[%clk 0:03:02]} 9... O-O {[%clk
0:02:44.6]} 10. Bd3 {[%clk 0:03:03.1]} 10... a6 {[%clk 0:02:43.6]} 11. O-O
{[%clk 0:02:50.4]} 11... b5 {[%clk 0:02:43.9]} 12. Rad1 {[%clk 0:02:34]} 12...
Qa5 {[%clk 0:02:37.7]} 13. e4 {[%clk 0:02:25]} 13... dxe4 {[%clk 0:02:27.7]} 14.
Bxe4 {[%clk 0:02:15.7]} 14... Nxe4 {[%clk 0:02:16.6]} 15. Qxe4 {[%clk
0:02:15.1]} 15... Nf6 {[%clk 0:02:12.3]} 16. Qe2 {[%clk 0:01:44.4]} 16... Bb4
{[%clk 0:02:10.4]} 17. Qc2 {[%clk 0:01:33.3]} 17... Rfd8 {[%clk 0:02:04.7]} 18.
a3 {[%clk 0:01:33.3]} 18... Bxc3 {[%clk 0:01:59.1]} 19. Qxc3 {[%clk 0:01:34.4]}
19... Qxc3 {[%clk 0:01:58.5]} 20. Bxc3 {[%clk 0:01:36.3]} 20... Ne4 {[%clk
0:01:58.7]} 21. Ba5 {[%clk 0:01:35.9]} 21... Rd7 {[%clk 0:01:57.5]} 22. Rfe1
{[%clk 0:01:36.4]} 22... Nf6 {[%clk 0:01:51]} 23. Re5 {[%clk 0:01:28.2]} 23...
Rb8 {[%clk 0:01:46.1]} 24. Rc5 {[%clk 0:01:25.8]} 24... bxc4 {[%clk 0:01:35.8]}
25. bxc4 {[%clk 0:01:23.5]} 25... Rc8 {[%clk 0:01:36.4]} 26. f3 {[%clk
0:01:17.3]} 26... Kf8 {[%clk 0:01:25]} 27. Kf2 {[%clk 0:01:16.1]} 27... Ke8
{[%clk 0:01:18.3]} 28. g4 {[%clk 0:01:15.7]} 28... h6 {[%clk 0:01:14]} 29. Ke3
{[%clk 0:01:15]} 29... Rb7 {[%clk 0:01:11.9]} 30. Bb4 {[%clk 0:01:11.3]} 30...
Nd7 {[%clk 0:01:09.3]} 31. Ra5 {[%clk 0:01:11.4]} 31... Ra8 {[%clk 0:00:52.7]}
32. h4 {[%clk 0:01:10.8]} 32... Nb6 {[%clk 0:00:51.3]} 33. Rc1 {[%clk
0:01:04.7]} 33... Kd7 {[%clk 0:00:49.5]} 34. h5 {[%clk 0:00:58.6]} 34... Nc8
{[%clk 0:00:49.8]} 35. d5 {[%clk 0:00:51.1]} 35... cxd5 {[%clk 0:00:34.9]} 36.
cxd5 {[%clk 0:00:51.8]} 36... Rb5 {[%clk 0:00:33]} 37. dxe6+ {[%clk 0:00:41.9]}
37... Kxe6 {[%clk 0:00:32.1]} 38. Rc6+ {[%clk 0:00:41.5]} 38... Kd5 {[%clk
0:00:22.5]} 39. Rcxa6 {[%clk 0:00:35.5]} 39... Rxa5 {[%clk 0:00:21.6]} 40. Rxa5+
{[%clk 0:00:36.3]} 40... Rxa5 {[%clk 0:00:21.8]} 41. Bxa5 {[%clk 0:00:38.2]}
41... Nd6 {[%clk 0:00:22.7]} 42. Bb4 {[%clk 0:00:38.2]} 42... Nc4+ {[%clk
0:00:20.3]} 43. Kf4 {[%clk 0:00:37.4]} 43... Ke6 {[%clk 0:00:21.3]} 44. Bf8
{[%clk 0:00:37.1]} 44... Kf6 {[%clk 0:00:19.3]} 45. Bc5 {[%clk 0:00:33.5]} 45...
g5+ {[%clk 0:00:19]} 46. Ke4 {[%clk 0:00:30.7]} 46... Ke6 {[%clk 0:00:14.1]} 47.
Bf8 {[%clk 0:00:30.2]} 47... f6 {[%clk 0:00:10.2]} 48. a4 {[%clk 0:00:24.6]}
48... Kf7 {[%clk 0:00:10.9]} 49. Bc5 {[%clk 0:00:20.5]} 49... Ke6 {[%clk
0:00:09.7]} 50. Bb4 {[%clk 0:00:18.2]} 50... Nb6 {[%clk 0:00:05.1]} 51. a5
{[%clk 0:00:17.9]} 51... Nd5 {[%clk 0:00:06.7]} 52. Bd2 {[%clk 0:00:16.5]} 52...
Nc7 {[%clk 0:00:07.5]} 53. Bb4 {[%clk 0:00:15.2]} 53... Na6 {[%clk 0:00:08.5]}
54. Bf8 {[%clk 0:00:15.9]} 54... Kf7 {[%clk 0:00:09.1]} 55. Bxh6 {[%clk
0:00:15.4]} 55... Nb8 {[%clk 0:00:08.7]} 56. Bxg5 {[%clk 0:00:16]} 56... fxg5
{[%clk 0:00:09.4]} 57. Kf5 {[%clk 0:00:17.4]} 57... Kg7 {[%clk 0:00:10.3]} 58.
Kxg5 {[%clk 0:00:18.7]} 58... Na6 {[%clk 0:00:11.7]} 59. h6+ {[%clk 0:00:19.8]}
59... Kh7 {[%clk 0:00:13]} 60. Kh5 {[%clk 0:00:21.2]} 60... Nc5 {[%clk
0:00:14.6]} 61. g5 {[%clk 0:00:22.4]} 61... Ne6 {[%clk 0:00:15.5]} 62. g6+
{[%clk 0:00:23.5]} 62... Kg8 {[%clk 0:00:17]} 63. a6 {[%clk 0:00:25]} 63... Nc7
{[%clk 0:00:17.2]} 64. a7 {[%clk 0:00:25.6]} 64... Kf8 {[%clk 0:00:18.7]} 65. f4
{[%clk 0:00:25]} 65... Ke7 {[%clk 0:00:19.8]} 66. h7 {[%clk 0:00:26]} 66... Kd6
{[%clk 0:00:21.7]} 67. h8=Q {[%clk 0:00:27.2]} 67... Kc6 {[%clk 0:00:23.6]} 68.
a8=Q+ {[%clk 0:00:28.5]} 68... Kc5 {[%clk 0:00:25.5]} 69. Qe5+ {[%clk
0:00:28.7]} 69... Kc4 {[%clk 0:00:27.4]} 70. Qxc7+ {[%clk 0:00:29.1]} 70... Kd3
{[%clk 0:00:29.3]} 71. Qa3+ {[%clk 0:00:30.1]} 1-0

[Event "*** Titled Tuesday Blitz"]
[Site "Chess.com"]
[Date "2018.04.03"]
[Round "6"]
[White "amatatanav"]
[Black "dianosky"]
[Result "1/2-1/2"]
[WhiteElo "2419"]
[BlackElo "2285"]
[TimeControl "180+2"]
[EndTime "14:20:57 PDT"]
[Termination "Game drawn by stalemate"]

1. e4 {[%clk 0:03:01.9]} 1... c5 {[%clk 0:03:00.5]} 2. Ne2 {[%clk 0:03:01.3]}
2... e5 {[%clk 0:02:57.2]} 3. Nbc3 {[%clk 0:03:01.3]} 3... Nf6 {[%clk
0:02:55.5]} 4. Ng3 {[%clk 0:03:01]} 4... g6 {[%clk 0:02:55.4]} 5. Bc4 {[%clk
0:02:50.8]} 5... Bg7 {[%clk 0:02:54.2]} 6. O-O {[%clk 0:02:34.6]} 6... d6 {[%clk
0:02:47.3]} 7. d3 {[%clk 0:02:34.8]} 7... Be6 {[%clk 0:02:43.1]} 8. f4 {[%clk
0:02:29.5]} 8... Nc6 {[%clk 0:02:36.9]} 9. Bb5 {[%clk 0:02:03]} 9... exf4 {[%clk
0:02:26.5]} 10. Bxf4 {[%clk 0:02:00.6]} 10... h6 {[%clk 0:02:26.1]} 11. e5
{[%clk 0:01:50.4]} 11... dxe5 {[%clk 0:02:10]} 12. Bxe5 {[%clk 0:01:49.4]} 12...
O-O {[%clk 0:02:04.3]} 13. Bxc6 {[%clk 0:01:49.8]} 13... bxc6 {[%clk 0:02:04.8]}
14. Qf3 {[%clk 0:01:26.2]} 14... Ng4 {[%clk 0:01:27.8]} 15. Bxg7 {[%clk
0:01:28.1]} 15... Kxg7 {[%clk 0:01:27]} 16. Nge4 {[%clk 0:00:56]} 16... Qd4+
{[%clk 0:01:14.6]} 17. Kh1 {[%clk 0:00:54]} 17... f5 {[%clk 0:01:11]} 18. Nf2
{[%clk 0:00:46]} 18... Bd5 {[%clk 0:01:10.8]} 19. Nxd5 {[%clk 0:00:32.6]} 19...
Nxf2+ {[%clk 0:01:10]} 20. Qxf2 {[%clk 0:00:30.1]} 20... Qxf2 {[%clk 0:01:09.4]}
21. Rxf2 {[%clk 0:00:29.1]} 21... cxd5 {[%clk 0:01:10.6]} 22. Re1 {[%clk
0:00:28.6]} 22... Rae8 {[%clk 0:01:10.7]} 23. Rfe2 {[%clk 0:00:29.8]} 23... Kf7
{[%clk 0:01:10.4]} 24. Kg1 {[%clk 0:00:24.9]} 24... Rxe2 {[%clk 0:01:10]} 25.
Rxe2 {[%clk 0:00:26.8]} 25... Re8 {[%clk 0:01:09]} 26. Kf2 {[%clk 0:00:27.6]}
26... Rxe2+ {[%clk 0:01:06]} 27. Kxe2 {[%clk 0:00:29.5]} 27... a5 {[%clk
0:01:05.9]} 28. c3 {[%clk 0:00:28.3]} 28... Ke6 {[%clk 0:01:03.8]} 29. b3 {[%clk
0:00:22.3]} 29... d4 {[%clk 0:01:00.5]} 30. cxd4 {[%clk 0:00:22.2]} 30... cxd4
{[%clk 0:01:01.1]} 31. a3 {[%clk 0:00:22.3]} 31... Kd5 {[%clk 0:01:01.5]} 32.
Kf3 {[%clk 0:00:17.1]} 32... g5 {[%clk 0:01:02.1]} 33. g3 {[%clk 0:00:16.5]}
33... Ke5 {[%clk 0:00:59.5]} 34. Ke2 {[%clk 0:00:11.3]} 34... h5 {[%clk
0:00:55]} 35. h4 {[%clk 0:00:08.5]} 35... g4 {[%clk 0:00:54.4]} 36. Kd2 {[%clk
0:00:05.2]} 36... f4 {[%clk 0:00:54.7]} 37. gxf4+ {[%clk 0:00:04.5]} 37... Kxf4
{[%clk 0:00:55.3]} 38. Ke2 {[%clk 0:00:03.8]} 38... Kg3 {[%clk 0:00:37.9]} 39.
b4 {[%clk 0:00:04.2]} 39... axb4 {[%clk 0:00:38.7]} 40. axb4 {[%clk 0:00:06.1]}
40... Kh2 {[%clk 0:00:39.4]} 41. b5 {[%clk 0:00:07.1]} 41... g3 {[%clk
0:00:40.4]} 42. b6 {[%clk 0:00:08.6]} 42... g2 {[%clk 0:00:41.3]} 43. b7 {[%clk
0:00:10.2]} 43... g1=Q {[%clk 0:00:41.8]} 44. b8=Q+ {[%clk 0:00:12.1]} 44... Qg3
{[%clk 0:00:41.9]} 45. Qd8 {[%clk 0:00:11.3]} 45... Qe3+ {[%clk 0:00:39.2]} 46.
Kd1 {[%clk 0:00:10.4]} 46... Qxd3+ {[%clk 0:00:40.1]} 47. Kc1 {[%clk 0:00:11.7]}
47... Qe3+ {[%clk 0:00:38.6]} 48. Kd1 {[%clk 0:00:12.2]} 48... d3 {[%clk
0:00:37.3]} 49. Qd6+ {[%clk 0:00:13.1]} 49... Qg3 {[%clk 0:00:28.6]} 50. Qf6
{[%clk 0:00:08.4]} 50... Qg4+ {[%clk 0:00:28.1]} 51. Kd2 {[%clk 0:00:07.4]}
51... Qe2+ {[%clk 0:00:28.6]} 52. Kc3 {[%clk 0:00:08.8]} 52... d2 {[%clk
0:00:27.9]} 53. Qf4+ {[%clk 0:00:09.7]} 53... Kh3 {[%clk 0:00:27.3]} 54. Qxd2
{[%clk 0:00:08.3]} 54... Qxd2+ {[%clk 0:00:27.8]} 55. Kxd2 {[%clk 0:00:10.2]}
55... Kxh4 {[%clk 0:00:29.2]} 56. Ke1 {[%clk 0:00:11.1]} 56... Kg3 {[%clk
0:00:27]} 57. Kf1 {[%clk 0:00:13]} 57... Kh2 {[%clk 0:00:27.1]} 58. Kf2 {[%clk
0:00:13.9]} 58... h4 {[%clk 0:00:27.4]} 59. Kf1 {[%clk 0:00:15.3]} 59... h3
{[%clk 0:00:28]} 60. Kf2 {[%clk 0:00:16.7]} 60... Kh1 {[%clk 0:00:27.2]} 61. Kf1
{[%clk 0:00:17.7]} 61... h2 {[%clk 0:00:29.1]} 62. Kf2 {[%clk 0:00:18.7]}
1/2-1/2

[Event "*** Titled Tuesday Blitz"]
[Site "Chess.com"]
[Date "2018.04.03"]
[Round "6"]
[White "matiss90"]
[Black "Blitzstream"]
[Result "0-1"]
[WhiteElo "2354"]
[BlackElo "2451"]
[TimeControl "180+2"]
[EndTime "14:21:00 PDT"]
[Termination "Blitzstream won by resignation"]

1. e4 {[%clk 0:02:54.9]} 1... d5 {[%clk 0:02:59.5]} 2. exd5 {[%clk 0:02:54.7]}
2... Qxd5 {[%clk 0:03:01.4]} 3. Nc3 {[%clk 0:02:55.2]} 3... Qa5 {[%clk
0:03:02.3]} 4. d4 {[%clk 0:02:56.4]} 4... Nf6 {[%clk 0:03:02.6]} 5. Nf3 {[%clk
0:02:56.9]} 5... c6 {[%clk 0:03:03.6]} 6. Bc4 {[%clk 0:02:51.5]} 6... Bf5 {[%clk
0:03:04.4]} 7. Ne5 {[%clk 0:02:51]} 7... e6 {[%clk 0:03:05.7]} 8. O-O {[%clk
0:02:51.3]} 8... Nbd7 {[%clk 0:03:05.9]} 9. Bf4 {[%clk 0:02:34.4]} 9... Nxe5
{[%clk 0:03:05]} 10. Bxe5 {[%clk 0:02:31.9]} 10... Bb4 {[%clk 0:03:00]} 11. Qf3
{[%clk 0:01:56.9]} 11... Bxc3 {[%clk 0:02:45.5]} 12. bxc3 {[%clk 0:01:56.8]}
12... Ne4 {[%clk 0:02:47.1]} 13. Rfe1 {[%clk 0:01:47.1]} 13... Qxc3 {[%clk
0:01:48.9]} 14. Bd3 {[%clk 0:01:14.8]} 14... Ng5 {[%clk 0:01:02.6]} 15. Qg3
{[%clk 0:00:41]} 15... Bxd3 {[%clk 0:00:46.5]} 16. Qxg5 {[%clk 0:00:40.6]} 16...
Bg6 {[%clk 0:00:39]} 17. d5 {[%clk 0:00:25]} 17... Qa3 {[%clk 0:00:34.6]} 18.
Bxg7 {[%clk 0:00:18.7]} 18... Rg8 {[%clk 0:00:35.3]} 19. d6 {[%clk 0:00:10.4]}
19... Qxd6 {[%clk 0:00:33.3]} 20. Rad1 {[%clk 0:00:11.4]} 20... Qxd1 {[%clk
0:00:19.3]} 21. Rxd1 {[%clk 0:00:11.1]} 21... Rxg7 {[%clk 0:00:20.8]} 22. Qf6
{[%clk 0:00:12.3]} 22... Rg8 {[%clk 0:00:22]} 23. Rd2 {[%clk 0:00:08.5]} 23...
a5 {[%clk 0:00:21.4]} 24. f3 {[%clk 0:00:09]} 24... a4 {[%clk 0:00:22.4]} 25. a3
{[%clk 0:00:10.3]} 25... h5 {[%clk 0:00:20.8]} 26. h4 {[%clk 0:00:10.4]} 26...
Bf5 {[%clk 0:00:19.2]} 27. Kf2 {[%clk 0:00:10]} 27... Bg6 {[%clk 0:00:20.3]} 28.
c4 {[%clk 0:00:10.9]} 28... Rb8 {[%clk 0:00:18.3]} 29. c5 {[%clk 0:00:11.6]}
29... Ra8 {[%clk 0:00:17.7]} 30. Rd6 {[%clk 0:00:12.3]} 30... Rb8 {[%clk
0:00:15.9]} 31. g4 {[%clk 0:00:13.3]} 31... Ra8 {[%clk 0:00:15.7]} 32. Kg3
{[%clk 0:00:11.2]} 32... Bf5 {[%clk 0:00:14.4]} 33. g5 {[%clk 0:00:07]} 33...
Rb8 {[%clk 0:00:13.7]} 34. Kf4 {[%clk 0:00:08.1]} 34... Ra8 {[%clk 0:00:14.3]}
35. Ke5 {[%clk 0:00:08.8]} 35... Rb8 {[%clk 0:00:14.9]} 36. Kd4 {[%clk
0:00:08.2]} 36... Ra8 {[%clk 0:00:15.9]} 37. Kc3 {[%clk 0:00:09]} 37... Rb8
{[%clk 0:00:15.6]} 38. Kb4 {[%clk 0:00:10.1]} 38... Ra8 {[%clk 0:00:17]} 39. f4
{[%clk 0:00:11.3]} 39... Be4 {[%clk 0:00:16.2]} 40. Qe5 {[%clk 0:00:09.2]} 40...
Bf5 {[%clk 0:00:14.9]} 41. Qf6 {[%clk 0:00:10.1]} 41... Bg6 {[%clk 0:00:15.2]}
42. Rd4 {[%clk 0:00:08.9]} 42... Bf5 {[%clk 0:00:13.3]} 43. Rd6 {[%clk
0:00:08.9]} 43... Bg6 {[%clk 0:00:13.9]} 44. Kc3 {[%clk 0:00:10.1]} 44... Bf5
{[%clk 0:00:14.6]} 45. Kd4 {[%clk 0:00:10.7]} 45... Bg6 {[%clk 0:00:16]} 46. Ke5
{[%clk 0:00:10.5]} 46... Bf5 {[%clk 0:00:17]} 47. Rd4 {[%clk 0:00:11.3]} 47...
Bg6 {[%clk 0:00:18.2]} 48. Rd2 {[%clk 0:00:08.1]} 48... Bf5 {[%clk 0:00:18.3]}
49. Qh6 {[%clk 0:00:07.7]} 49... Bg6 {[%clk 0:00:16.9]} 50. Kf6 {[%clk
0:00:04.5]} 50... Rd8 {[%clk 0:00:16.3]} 51. Rxd8+ {[%clk 0:00:04.3]} 51... Kxd8
{[%clk 0:00:18.2]} 52. f5 {[%clk 0:00:04.3]} 52... exf5 {[%clk 0:00:20.1]} 53.
Ke5 {[%clk 0:00:03.9]} 53... Kc7 {[%clk 0:00:21.4]} 54. Kf4 {[%clk 0:00:03.3]}
54... b6 {[%clk 0:00:22.6]} 55. cxb6+ {[%clk 0:00:03.5]} 55... Kxb6 {[%clk
0:00:24.5]} 56. Ke5 {[%clk 0:00:04.9]} 56... Kb5 {[%clk 0:00:25.9]} 57. Kd4
{[%clk 0:00:06]} 57... c5+ {[%clk 0:00:27.3]} 58. Kc3 {[%clk 0:00:07.1]} 58...
f4 {[%clk 0:00:28.8]} 59. Kd2 {[%clk 0:00:05.6]} 59... Kc4 {[%clk 0:00:29.3]}
60. Ke2 {[%clk 0:00:06.5]} 60... Kb3 {[%clk 0:00:30.4]} 61. Kf3 {[%clk
0:00:07.9]} 61... c4 {[%clk 0:00:31.9]} 62. Kxf4 {[%clk 0:00:09.3]} 62... c3
{[%clk 0:00:33.4]} 63. Ke5 {[%clk 0:00:05.5]} 63... c2 {[%clk 0:00:31.9]} 64.
Kd4 {[%clk 0:00:02.7]} 64... c1=Q {[%clk 0:00:31.5]} 0-1